bitfinex/quotes_BTCUSD_20240620
["timestamp","ask_amount","ask_price","bid_price","bid_amount"]
[1718858249207,0.78821659,65329.0,65328.0,0.24567259]
[1718858249625,0.78821659,65329.0,65328.0,0.25067259]
[1718858251554,0.85696262,65329.0,65328.0,0.005946]
[1718858251863,0.78821659,65329.0,65328.0,0.005946]
[1718858252059,0.87981147,65329.0,65328.0,0.005946]
[1718858252261,0.78821659,65329.0,65328.0,0.005946]
[1718858253715,1.09435859,65329.0,65328.0,0.005946]
[1718858254118,1.09435859,65329.0,65328.0,0.01937259]
[1718858254939,1.09435859,65329.0,65328.0,0.01737259]
[1718858255340,1.09535859,65329.0,65328.0,0.01737259]
[1718858255541,1.09535859,65329.0,65328.0,0.000946]
[1718858255747,1.09535859,65329.0,65328.0,0.01437259]
[1718858256781,1.09621859,65329.0,65328.0,0.000946]
[1718858257802,1.22381859,65329.0,65328.0,0.000946]
[1718858258057,1.32741859,65329.0,65328.0,0.000946]
[1718858259415,1.32911198,65329.0,65328.0,0.000946]
[1718858260735,1.40405398,65329.0,65328.0,0.000946]
[1718858260937,2.51516498,65329.0,65328.0,0.000946]
[1718858261134,2.51364829,65329.0,65328.0,0.000946]
[1718858261319,2.36869139,65329.0,65328.0,0.000946]
[1718858261515,2.42819139,65329.0,65328.0,0.000946]
[1718858262548,2.36869139,65329.0,65328.0,0.000946]
[1718858262750,2.23979139,65329.0,65328.0,0.000946]
[1718858263430,2.24557874,65329.0,65328.0,0.000946]
[1718858263832,2.34557874,65329.0,65328.0,0.000946]
[1718858264035,2.28029139,65329.0,65328.0,0.000946]
[1718858264373,2.28653239,65329.0,65328.0,0.000946]
[1718858264611,2.14879729,65329.0,65328.0,0.000946]
[1718858265141,2.28657733,65329.0,65328.0,0.000946]
[1718858265576,2.14879729,65329.0,65328.0,0.000946]
[1718858266180,2.14891609,65329.0,65328.0,0.000946]
[1718858267274,2.28669815,65329.0,65328.0,0.000946]
[1718858267677,2.14891609,65329.0,65328.0,0.000946]
[1718858267882,2.08941609,65329.0,65328.0,0.000946]
[1718858268078,2.28669977,65329.0,65328.0,0.000946]
[1718858269889,1.39161017,65329.0,65328.0,0.233246]
[1718858270063,1.3357582,65329.0,65328.0,0.233246]
[1718858270365,1.19797212,65329.0,65328.0,0.233246]
[1718858271420,0.02647512,65329.0,65328.0,0.24667259]
[1718858271625,0.29436202,65329.0,65328.0,0.24667259]
[1718858271835,0.17954612,65329.0,65328.0,0.24667259]
[1718858272158,0.57753806,65329.0,65328.0,0.24667259]
[1718858272732,0.48568812,65329.0,65328.0,0.24667259]
[1718858274128,0.57753854,65329.0,65328.0,0.24667259]
[1718858274332,0.27139654,65329.0,65328.0,0.24667259]
[1718858274901,0.95982654,65329.0,65328.0,0.24667259]
[1718858277233,0.96236149,65329.0,65328.0,0.24667259]
[1718858277627,0.7863264,65329.0,65328.0,0.61180671]
[1718858277854,0.71744007,65329.0,65328.0,0.62180671]
[1718858278733,0.71644007,65329.0,65328.0,0.62180671]
[1718858278936,0.71744007,65329.0,65328.0,0.62780671]
[1718858279124,0.71675092,65329.0,65328.0,0.62780671]
[1718858279320,0.71775092,65329.0,65328.0,0.93895371]
[1718858279729,0.71775092,65329.0,65328.0,1.55124771]
[1718858280321,0.71775092,65329.0,65328.0,1.49174771]
[1718858280540,0.71775092,65329.0,65328.0,1.55124771]
[1718858280741,0.71361092,65329.0,65328.0,1.55124771]
[1718858281323,0.71361092,65329.0,65328.0,0.87945371]
[1718858281521,0.39567321,65329.0,65328.0,1.24510071]
[1718858281741,0.39467321,65329.0,65328.0,1.24010071]
[1718858282024,0.39467321,65329.0,65328.0,1.24510071]
[1718858282323,0.39567321,65329.0,65328.0,0.89045371]
[1718858283080,0.39567321,65329.0,65328.0,0.88045371]
[1718858283282,0.39567321,65329.0,65328.0,0.89045371]
[1718858283955,0.39567321,65329.0,65328.0,0.88045371]
[1718858284070,0.39567321,65329.0,65328.0,0.57430671]
[1718858284704,0.39567321,65329.0,65328.0,0.88045371]
[1718858284910,0.39567321,65329.0,65328.0,0.57430671]
[1718858285799,0.39567321,65329.0,65328.0,0.42123371]
[1718858286819,0.39567321,65329.0,65328.0,0.57430671]
[1718858287029,0.39567321,65329.0,65328.0,0.42123371]
[1718858288103,0.39567321,65329.0,65328.0,0.58430671]
[1718858289370,0.39653321,65329.0,65328.0,0.58430671]
[1718858292324,0.40067321,65329.0,65328.0,0.58430671]
[1718858294973,0.40067321,65329.0,65328.0,0.57430671]
[1718858295759,0.40067321,65329.0,65328.0,0.58430671]
[1718858296015,0.40067321,65329.0,65328.0,0.42123371]
[1718858305156,0.40067321,65329.0,65328.0,0.41663371]
[1718858305748,0.40067321,65329.0,65328.0,0.42663371]
[1718858305949,0.40067321,65329.0,65328.0,0.41663371]
[1718858309645,0.40067321,65329.0,65328.0,0.44956071]
[1718858309843,0.40067321,65329.0,65328.0,0.57126071]
[1718858310001,0.40067321,65329.0,65328.0,0.87740771]
[1718858311661,0.40336712,65329.0,65328.0,0.87740771]
[1718858312910,0.40336712,65329.0,65328.0,0.56126071]
[1718858317075,0.40336712,65329.0,65328.0,0.18798771]
[1718858317281,0.47217494,65329.0,65328.0,0.18798771]
[1718858318128,1.26046588,65329.0,65328.0,0.03542659]
[1718858318457,1.16872212,65329.0,65328.0,0.03542659]
[1718858318658,0.86258012,65329.0,65328.0,0.03542659]
[1718858319076,0.95450511,65329.0,65328.0,0.03542659]
[1718858319480,0.86258012,65329.0,65328.0,0.03542659]
[1718858319686,0.95450511,65329.0,65328.0,0.03542659]
[1718858320045,0.86258012,65329.0,65328.0,0.03542659]
[1718858320244,0.95450511,65329.0,65328.0,0.03542659]
[1718858321095,0.49529211,65329.0,65328.0,0.19893371]
[1718858321219,0.49529211,65329.0,65328.0,0.51190671]
[1718858321415,0.40336712,65329.0,65328.0,0.63530671]
[1718858322017,0.37835229,65329.0,65328.0,0.63530671]
[1718858322269,0.40500014,65329.0,65328.0,0.63530671]
[1718858322580,0.49692513,65329.0,65328.0,0.63530671]
[1718858323287,0.49692513,65329.0,65328.0,0.57580671]
[1718858323443,0.47027728,65329.0,65328.0,0.56580671]
[1718858323842,0.49671796,65329.0,65328.0,0.56580671]
[1718858324668,0.47027728,65329.0,65328.0,0.56580671]
[1718858325017,0.37835229,65329.0,65328.0,0.56580671]
[1718858325642,0.49655233,65329.0,65328.0,0.56580671]
[1718858327708,0.37835229,65329.0,65328.0,0.56580671]
[1718858328260,0.37835229,65329.0,65328.0,0.57580671]
[1718858328878,0.37835229,65329.0,65328.0,0.56580671]
[1718858329418,0.37835229,65329.0,65328.0,0.41273371]
[1718858332463,0.37835229,65329.0,65328.0,0.42273371]
[1718858332623,0.37835229,65329.0,65328.0,0.41273371]
[1718858333766,0.37835229,65329.0,65328.0,0.42273371]
[1718858335949,0.37835229,65329.0,65328.0,0.57580671]
[1718858338049,0.37835229,65329.0,65328.0,0.88195371]
[1718858338805,0.37835229,65329.0,65328.0,1.55374771]
[1718858338806,0.44733277,65329.0,65328.0,1.55374771]
[1718858339051,0.37835229,65329.0,65328.0,1.55374771]
[1718858339583,0.37835229,65329.0,65328.0,1.60374771]
[1718858339791,0.37421229,65329.0,65328.0,1.60374771]
[1718858340222,0.37421229,65329.0,65328.0,1.49424771]
[1718858340418,0.37421229,65329.0,65328.0,1.55374771]
[1718858340821,0.37421229,65329.0,65328.0,1.49424771]
[1718858341069,0.37421229,65329.0,65328.0,0.89265371]
[1718858341278,0.37421229,65329.0,65328.0,0.88265371]
[1718858341683,0.37421229,65329.0,65328.0,0.89265371]
[1718858342181,0.37421229,65329.0,65328.0,0.88265371]
[1718858342737,0.40025397,65329.0,65328.0,0.88265371]
[1718858342955,0.42629598,65329.0,65328.0,0.88265371]
[1718858343163,0.4002543,65329.0,65328.0,0.89265371]
[1718858343513,0.46922311,65329.0,65328.0,0.89265371]
[1718858343696,0.4002543,65329.0,65328.0,0.89265371]
[1718858343873,0.4002543,65329.0,65328.0,0.88265371]
[1718858344084,0.4002543,65329.0,65328.0,0.89265371]
[1718858344454,0.4002543,65329.0,65328.0,0.88265371]
[1718858345267,0.4002543,65329.0,65328.0,0.89265371]
[1718858345488,0.4002543,65329.0,65328.0,0.88265371]
[1718858345687,0.4002543,65329.0,65328.0,0.89265371]
[1718858346064,0.4002543,65329.0,65328.0,0.88265371]
[1718858346065,0.46922311,65329.0,65328.0,0.88265371]
[1718858346201,0.46922311,65329.0,65328.0,0.89265371]
[1718858346410,0.4002543,65329.0,65328.0,0.89265371]
[1718858346794,0.40071083,65329.0,65328.0,0.89265371]
[1718858348216,0.46967964,65329.0,65328.0,0.89265371]
[1718858348767,0.40071083,65329.0,65328.0,0.89265371]
[1718858349380,0.40071083,65329.0,65328.0,0.88265371]
[1718858349676,0.40071083,65329.0,65328.0,0.89265371]
[1718858349935,0.40071083,65329.0,65328.0,0.88265371]
[1718858350317,0.40485083,65329.0,65328.0,0.88265371]
[1718858350657,0.40485083,65329.0,65328.0,0.64815371]
[1718858350862,0.40485083,65329.0,65328.0,0.18893371]
[1718858351297,0.40568282,65329.0,65328.0,0.18893371]
[1718858352118,0.40568282,65329.0,65328.0,0.03637259]
[1718858352119,1.47089624,65329.0,65328.0,0.03637259]
[1718858352333,1.37893782,65329.0,65328.0,0.022946]
[1718858353178,1.35160729,65329.0,65328.0,0.022946]
[1718858353393,1.37836908,65329.0,65328.0,0.022946]
[1718858353831,1.37736908,65329.0,65328.0,0.011946]
[1718858354039,1.37736908,65329.0,65328.0,0.006946]
[1718858354260,1.37836908,65329.0,65328.0,0.011946]
[1718858354478,1.37736908,65329.0,65328.0,0.01937259]
[1718858354695,1.37736908,65329.0,65328.0,0.000946]
[1718858354932,1.37936908,65329.0,65328.0,0.011946]
[1718858355356,1.37936908,65329.0,65328.0,0.02537259]
[1718858356810,1.49425965,65329.0,65328.0,0.02537259]
[1718858360624,1.49425965,65329.0,65328.0,0.011946]
[1718858360820,1.49425965,65329.0,65328.0,0.02537259]
[1718858361244,1.37936908,65329.0,65328.0,0.02537259]
[1718858363257,1.49424018,65329.0,65328.0,0.02537259]
[1718858366742,1.20964785,65329.0,65328.0,0.02537259]
[1718858369093,1.06801496,65329.0,65328.0,0.02537259]
[1718858369312,1.21112596,65329.0,65328.0,0.02537259]
[1718858371027,1.21113321,65329.0,65328.0,0.02537259]
[1718858372565,1.12483321,65329.0,65328.0,0.02537259]
[1718858373152,1.00998085,65329.0,65328.0,0.02537259]
[1718858373349,1.12483321,65329.0,65328.0,0.02537259]
[1718858373559,1.00998085,65329.0,65328.0,0.02537259]
[1718858374099,0.88838085,65329.0,65328.0,0.02537259]
[1718858374657,0.58223885,65329.0,65328.0,0.02537259]
[1718858374887,0.67411988,65329.0,65328.0,0.02537259]
[1718858376241,0.66997988,65329.0,65328.0,0.02537259]
[1718858376616,0.57809885,65329.0,65328.0,0.02537259]
[1718858377163,0.58223885,65329.0,65328.0,0.02537259]
[1718858377381,0.27609685,65329.0,65328.0,0.02537259]
[1718858377805,0.12302585,65329.0,65328.0,0.61488071]
[1718858378044,0.19193444,65329.0,65328.0,0.93803543]
[1718858378524,0.19193444,65329.0,65328.0,0.86175371]
[1718858378821,0.12302585,65329.0,65328.0,0.86175371]
[1718858379097,0.12302585,65329.0,65328.0,0.92125371]
[1718858382958,0.12302585,65329.0,65328.0,0.85175371]
[1718858383584,0.09475996,65329.0,65328.0,0.85175371]
[1718858383789,0.12255461,65329.0,65328.0,0.85175371]
[1718858384630,0.12255461,65329.0,65328.0,0.86175371]
[1718858386846,0.12255461,65329.0,65328.0,0.92125371]
[1718858388229,0.12466717,65329.0,65328.0,0.92125371]
[1718858389154,0.12466717,65329.0,65328.0,1.22740071]
[1718858391258,0.12466717,65329.0,65328.0,2.04169471]
[1718858391871,0.09475996,65329.0,65328.0,2.04169471]
[1718858392073,0.11485148,65349.0,65328.0,2.04169471]
[1718858392074,0.09896941,65350.0,65349.0,0.01342659]
[1718858392283,0.11865879,65350.0,65349.0,0.01342659]
[1718858392695,0.02684342,65350.0,65349.0,0.01342659]
[1718858392902,0.02684342,65350.0,65349.0,0.01642659]
[1718858393557,0.02684342,65350.0,65349.0,0.01942659]
[1718858394061,0.23512548,65350.0,65349.0,0.01942659]
[1718858394300,0.23512548,65350.0,65349.0,0.01642659]
[1718858394502,0.38814748,65350.0,65349.0,0.01642659]
[1718858394845,0.38814748,65350.0,65349.0,0.01942659]
[1718858395039,0.29636542,65350.0,65349.0,0.01642659]
[1718858395381,1.31089742,65350.0,65349.0,0.003]
[1718858395588,1.40363935,65350.0,65349.0,0.01]
[1718858395791,1.31189742,65350.0,65349.0,0.016]
[1718858396230,1.31089742,65350.0,65349.0,0.003]
[1718858396587,1.31535182,65350.0,65349.0,0.01]
[1718858397145,1.53672282,65350.0,65349.0,0.003]
[1718858397294,1.53972282,65350.0,65349.0,0.003]
[1718858397689,1.31735182,65350.0,65349.0,0.003]
[1718858397897,1.73836282,65350.0,65349.0,0.003]
[1718858398313,1.68109682,65350.0,65349.0,0.003]
[1718858398756,1.58166882,65350.0,65349.0,0.003]
[1718858400239,1.98771282,65350.0,65349.0,0.003]
[1718858400447,2.19249407,65350.0,65349.0,0.003]
[1718858400692,2.05488453,65350.0,65349.0,0.003]
[1718858400900,2.19248617,65350.0,65349.0,0.003]
[1718858401072,2.05488453,65350.0,65349.0,0.003]
[1718858401267,2.11438453,65350.0,65349.0,0.003]
[1718858403576,2.13738453,65350.0,65349.0,0.003]
[1718858404607,2.28994565,65350.0,65349.0,0.003]
[1718858404816,2.28694565,65350.0,65349.0,0.003]
[1718858405018,2.29794565,65350.0,65349.0,0.004]
[1718858405174,2.44875638,65350.0,65349.0,0.004]
[1718858405620,2.48216736,65350.0,65349.0,0.005]
[1718858406827,2.47116736,65350.0,65349.0,0.004]
[1718858407019,2.48516736,65350.0,65349.0,0.005]
[1718858408102,2.33035663,65350.0,65349.0,0.005]
[1718858411654,2.32456928,65350.0,65349.0,0.005]
[1718858411868,1.82519116,65350.0,65349.0,0.005]
[1718858412092,1.8233068,65350.0,65349.0,0.005]
[1718858412245,2.04272516,65350.0,65349.0,0.005]
[1718858412446,1.98261726,65350.0,65349.0,0.005]
[1718858412685,2.04521872,65350.0,65349.0,0.005]
[1718858412889,1.73917472,65350.0,65349.0,0.005]
[1718858413296,1.67597472,65350.0,65349.0,0.005]
[1718858413531,1.61337326,65350.0,65349.0,0.005]
[1718858413758,1.55387326,65350.0,65349.0,0.01842659]
[1718858413933,1.24613926,65350.0,65349.0,0.005]
[1718858414765,1.23213926,65350.0,65349.0,0.004]
[1718858414966,1.23213926,65350.0,65349.0,0.003]
[1718858414967,1.22113926,65350.0,65349.0,0.003]
[1718858415093,1.22913926,65350.0,65349.0,0.004]
[1718858416597,1.22913926,65350.0,65349.0,0.004946]
[1718858416832,1.23699926,65350.0,65349.0,0.00594536]
[1718858417478,1.35989926,65350.0,65349.0,0.00594536]
[1718858417713,1.35989926,65350.0,65349.0,0.002946]
[1718858418040,1.49755488,65350.0,65349.0,0.002946]
[1718858418248,1.50334223,65350.0,65349.0,0.002946]
[1718858418449,1.59704223,65350.0,65349.0,0.002946]
[1718858418859,1.59125488,65350.0,65349.0,0.005946]
[1718858419416,1.71419561,65350.0,65349.0,0.005946]
[1718858419848,2.02023961,65350.0,65349.0,0.005946]
[1718858420041,2.08284107,65350.0,65349.0,0.005946]
[1718858420891,2.23767853,65350.0,65349.0,0.005946]
[1718858421241,2.41323965,65350.0,65349.0,0.005946]
[1718858421427,2.42925153,65350.0,65349.0,0.005946]
[1718858422430,2.58045807,65350.0,65349.0,0.005946]
[1718858422637,2.27441407,65350.0,65349.0,0.005946]
[1718858423166,2.27141505,65350.0,65349.0,0.005946]
[1718858424004,2.57745905,65350.0,65349.0,0.005946]
[1718858424417,2.27141505,65350.0,65349.0,0.005946]
[1718858424622,2.26998449,65350.0,65349.0,0.005946]
[1718858425594,2.32948449,65350.0,65349.0,0.005946]
[1718858425994,2.74573347,65350.0,65349.0,0.005946]
[1718858426198,2.73552849,65350.0,65349.0,0.005946]
[1718858426441,2.57602849,65350.0,65349.0,0.005946]
[1718858426614,2.63552849,65350.0,65349.0,0.005946]
[1718858427275,2.62852849,65350.0,65349.0,0.004946]
[1718858427443,2.64152849,65350.0,65349.0,0.005946]
[1718858428428,2.64152849,65350.0,65349.0,0.00358686]
[1718858428680,1.071399,65335.0,65334.0,0.07628172]
[1718858428878,0.459178,65334.0,65333.0,0.2267]
[1718858429036,0.48448072,65334.0,65333.0,0.2267]
[1718858429236,0.73763372,65334.0,65333.0,0.2267]
[1718858429447,0.65985072,65334.0,65333.0,0.2267]
[1718858429640,0.62006772,65334.0,65333.0,0.2267]
[1718858430242,0.62106772,65334.0,65333.0,0.2267]
[1718858430563,1.23330572,65334.0,65333.0,0.2267]
[1718858431393,1.23430572,65334.0,65333.0,0.2287]
[1718858432948,1.64621207,65334.0,65333.0,0.002]
[1718858433797,1.64621207,65334.0,65328.0,0.124246]
[1718858433798,1.071497,65329.0,65328.0,0.220946]
[1718858433996,1.25629972,65329.0,65328.0,0.000946]
[1718858434509,2.14364372,65329.0,65328.0,0.000946]
[1718858434724,2.20408716,65329.0,65328.0,0.000946]
[1718858435475,2.20708716,65329.0,65328.0,0.000946]
[1718858436152,2.20708716,65329.0,65328.0,0.005946]
[1718858436352,2.20808716,65329.0,65328.0,0.010946]
[1718858437111,2.56150144,65329.0,65328.0,0.010946]
[1718858437933,2.52001651,65329.0,65328.0,0.010946]
[1718858438364,2.45971837,65329.0,65328.0,0.005946]
[1718858438569,2.5203081,65329.0,65328.0,0.005946]
[1718858438847,2.5223081,65329.0,65328.0,0.000946]
[1718858440513,2.5253081,65329.0,65328.0,0.000946]
[1718858449038,2.31142475,65329.0,65328.0,0.000946]
[1718858449300,1.97022975,65329.0,65328.0,0.119046]
[1718858449709,1.68725625,65329.0,65328.0,0.216446]
[1718858449917,1.68725625,65329.0,65328.0,0.22987259]
[1718858449918,1.29760549,65329.0,65328.0,0.22987259]
[1718858450139,1.27468872,65329.0,65328.0,0.22987259]
[1718858450337,1.27468884,65329.0,65328.0,0.22987259]
[1718858450545,1.24924028,65329.0,65328.0,0.22987259]
[1718858450756,1.2764931,65329.0,65328.0,0.22987259]
[1718858450969,1.2734931,65329.0,65328.0,0.22987259]
[1718858451553,1.2704931,65329.0,65328.0,0.22987259]
[1718858451951,1.2714931,65329.0,65328.0,0.22987259]
[1718858452171,1.2704931,65329.0,65328.0,0.216446]
[1718858452371,1.2704931,65329.0,65328.0,0.22987259]
[1718858452582,1.20174982,65329.0,65328.0,0.23187259]
[1718858453185,1.27049431,65329.0,65328.0,0.23187259]
[1718858453400,1.2702933,65329.0,65328.0,0.23487259]
[1718858453770,1.20154862,65329.0,65328.0,0.23487259]
[1718858453976,1.27029361,65329.0,65328.0,0.23487259]
[1718858454821,1.20154862,65329.0,65328.0,0.221446]
[1718858455036,1.27029458,65329.0,65328.0,0.221446]
[1718858458577,1.27029458,65329.0,65328.0,0.23487259]
[1718858459438,1.20154862,65329.0,65328.0,0.23487259]
[1718858459642,1.20154862,65329.0,65328.0,0.221446]
[1718858459855,1.27031419,65329.0,65328.0,0.23487259]
[1718858460380,1.20154862,65329.0,65328.0,0.221446]
[1718858460794,1.20154862,65329.0,65328.0,0.23487259]
[1718858461838,1.29324864,65329.0,65328.0,0.23487259]
[1718858462989,0.86420622,65329.0,65328.0,0.24487259]
[1718858463186,0.79540662,65329.0,65328.0,0.23487259]
[1718858464112,0.79540662,65329.0,65328.0,0.24487259]
[1718858464335,0.79540662,65329.0,65328.0,0.23487259]
[1718858466004,0.86420622,65329.0,65328.0,0.23487259]
[1718858466191,0.79540662,65329.0,65328.0,0.23487259]
[1718858467226,0.88710664,65329.0,65328.0,0.23487259]
[1718858471168,0.58108929,65329.0,65328.0,0.23487259]
[1718858471368,0.25199021,65329.0,65328.0,0.23487259]
[1718858471569,0.39445796,65331.0,65329.0,0.0898]
[1718858471773,0.02846906,65330.0,65329.0,0.27492659]
[1718858472640,0.02846906,65330.0,65329.0,0.21542659]
[1718858473274,0.02846906,65330.0,65329.0,0.21642659]
[1718858473729,0.02846906,65330.0,65329.0,0.21542659]
[1718858474572,0.02846906,65330.0,65329.0,0.21642659]
[1718858474973,0.459191,65333.0,65331.0,0.0926]
[1718858475192,0.153064,65333.0,65332.0,0.22842659]
[1718858475626,0.17851018,65333.0,65332.0,0.22842659]
[1718858475821,0.17851018,65333.0,65332.0,0.22896659]
[1718858476845,0.17851018,65333.0,65332.0,0.23496659]
[1718858477046,0.17951018,65333.0,65332.0,0.23496659]
[1718858477453,0.18051018,65333.0,65332.0,0.24096659]
[1718858478952,0.48663418,65333.0,65332.0,0.24096659]
[1718858482698,0.48663418,65333.0,65332.0,0.22754]
[1718858482901,0.79275818,65333.0,65332.0,0.22754]
[1718858483100,1.09888218,65333.0,65332.0,0.01254]
[1718858485204,1.09638465,65333.0,65332.0,0.01254]
[1718858485448,1.09638464,65333.0,65332.0,0.01254]
[1718858485983,1.18814555,65333.0,65332.0,0.01254]
[1718858486162,1.16519691,65333.0,65332.0,0.01254]
[1718858486575,1.18731245,65333.0,65332.0,0.01254]
[1718858487795,1.18831984,65333.0,65332.0,0.01254]
[1718858488329,1.18831984,65333.0,65332.0,0.02596659]
[1718858488755,1.18831984,65333.0,65332.0,0.01254]
[1718858489151,1.38521984,65333.0,65332.0,0.01254]
[1718858489336,1.45295893,65333.0,65332.0,0.01254]
[1718858490433,1.45195893,65333.0,65332.0,0.00654]
[1718858490629,1.45495893,65333.0,65332.0,0.00654]
[1718858491011,1.45974628,65333.0,65332.0,0.00054]
[1718858491170,1.45674628,65333.0,65332.0,0.00054]
[1718858491592,1.46074628,65333.0,65332.0,0.00054]
[1718858491810,1.48475595,65333.0,65332.0,0.00054]
[1718858492881,1.48875595,65333.0,65332.0,0.00054]
[1718858494227,2.53144232,65333.0,65332.0,0.00054]
[1718858494349,2.44814321,65333.0,65332.0,0.00054]
[1718858494554,2.31050184,65333.0,65332.0,0.00054]
[1718858494753,2.44828552,65333.0,65332.0,0.00054]
[1718858495687,2.75440952,65333.0,65332.0,0.00054]
[1718858495920,2.77740952,65333.0,65332.0,0.00054]
[1718858496136,2.75339985,65333.0,65332.0,0.00054]
[1718858496355,2.77062281,65333.0,65332.0,0.00054]
[1718858496560,2.55611617,65333.0,65332.0,0.00054]
[1718858496767,2.77062281,65333.0,65332.0,0.00054]
[1718858497925,2.61561617,65333.0,65332.0,0.00054]
[1718858498127,2.55611617,65333.0,65332.0,0.00054]
[1718858498328,2.61561617,65333.0,65332.0,0.00054]
[1718858501805,2.61645415,65333.0,65332.0,0.00054]
[1718858507056,1.85307615,65333.0,65332.0,0.00054]
[1718858507256,4.76852415,65333.0,65332.0,0.00054]
[1718858507908,4.66027715,65333.0,65332.0,0.00054]
[1718858508073,4.81892366,65333.0,65332.0,0.00054]
[1718858509371,4.97148478,65333.0,65332.0,0.00054]
[1718858509575,5.27760878,65333.0,65332.0,0.00054]
[1718858511173,5.09613347,65333.0,65332.0,0.00054]
[1718858512043,5.22018303,65333.0,65332.0,0.00054]
[1718858512415,5.27966707,65333.0,65332.0,0.00054]
[1718858513633,5.28052707,65333.0,65332.0,0.00054]
[1718858513828,5.12128057,65333.0,65332.0,0.00054]
[1718858513991,5.09699347,65333.0,65332.0,0.00054]
[1718858517064,4.94392947,65333.0,65332.0,0.00054]
[1718858517414,5.09699347,65333.0,65332.0,0.00054]
[1718858517622,4.49046447,65333.0,65332.0,0.00054]
[1718858521626,4.43096447,65333.0,65332.0,0.00054]
[1718858521831,4.49046447,65333.0,65332.0,0.00054]
[1718858523924,4.67492041,65333.0,65332.0,0.00054]
[1718858525811,4.20364541,65333.0,65332.0,0.00054]
[1718858526906,4.20364541,65333.0,65328.0,0.000946]
[1718858526907,1.38342635,65329.0,65328.0,0.000946]
[1718858527140,1.5847572,65329.0,65328.0,0.000946]
[1718858527307,1.59054455,65329.0,65328.0,0.000946]
[1718858527542,2.84637955,65329.0,65328.0,0.000946]
[1718858527713,2.90671892,65329.0,65328.0,0.000946]
[1718858528059,2.90671892,65329.0,65328.0,0.001946]
[1718858528522,2.81590692,65329.0,65328.0,0.002946]
[1718858529277,2.81590692,65329.0,65328.0,0.001946]
[1718858529593,2.82510262,65329.0,65328.0,0.001946]
[1718858529973,2.81710262,65329.0,65328.0,0.000946]
[1718858530411,2.82510262,65329.0,65328.0,0.001946]
[1718858530634,2.65250827,65329.0,65328.0,0.001946]
[1718858530802,2.03510327,65329.0,65328.0,0.000946]
[1718858531004,1.98860527,65329.0,65328.0,0.000946]
[1718858531195,1.99860527,65329.0,65328.0,0.001946]
[1718858531615,2.00960527,65329.0,65328.0,0.001946]
[1718858532328,1.97115427,65329.0,65328.0,0.103346]
[1718858533344,1.97115427,65329.0,65328.0,0.227946]
[1718858535963,1.97694162,65329.0,65328.0,0.227946]
[1718858536388,1.97694162,65329.0,65328.0,0.001946]
[1718858538980,1.99811155,65329.0,65328.0,0.001946]
[1718858539517,1.99818333,65329.0,65328.0,0.001946]
[1718858540265,2.15321569,65329.0,65328.0,0.001946]
[1718858540451,1.99818333,65329.0,65328.0,0.001946]
[1718858540652,1.93868333,65329.0,65328.0,0.001946]
[1718858540972,1.99818333,65329.0,65328.0,0.001946]
[1718858541508,2.15073747,65329.0,65328.0,0.001946]
[1718858542291,2.05953733,65329.0,65328.0,0.001946]
[1718858543708,2.05960567,65329.0,65328.0,0.001946]
[1718858547373,2.06011149,65329.0,65328.0,0.001946]
[1718858547826,2.00061149,65329.0,65328.0,0.001946]
[1718858548134,2.06011149,65329.0,65328.0,0.001946]
[1718858549208,2.21267261,65329.0,65328.0,0.001946]
[1718858551196,1.38355235,65323.0,65322.0,0.1238]
[1718858551401,1.56861317,65323.0,65322.0,0.1238]
[1718858551650,1.59161317,65323.0,65322.0,0.1238]
[1718858553021,1.65231156,65323.0,65322.0,0.1238]
[1718858553262,3.00217756,65323.0,65322.0,0.1238]
[1718858553465,1.38359735,65321.0,65320.0,0.001]
[1718858553622,1.68734316,65321.0,65320.0,0.001]
[1718858553971,2.78125717,65321.0,65320.0,0.001]
[1718858554273,2.84195556,65321.0,65320.0,0.001]
[1718858555777,2.84463556,65321.0,65320.0,0.001]
[1718858556716,3.6062459,65321.0,65320.0,0.001]
[1718858556892,3.6142459,65321.0,65320.0,0.001]
[1718858557748,3.6222459,65321.0,65320.0,0.001]
[1718858558558,1.38372335,65315.0,65314.0,0.095]
[1718858558761,1.74434529,65315.0,65314.0,0.095]
[1718858558963,3.93219994,65315.0,65314.0,0.095]
[1718858559244,1.73855794,65315.0,65314.0,0.095]
[1718858559400,4.04196933,65315.0,65314.0,0.095]
[1718858559580,4.04305322,65315.0,65314.0,0.095]
[1718858559980,4.04563322,65315.0,65314.0,0.095]
[1718858560171,4.04663322,65315.0,65314.0,0.095]
[1718858560549,4.00250087,65315.0,65314.0,0.095]
[1718858560757,3.94209787,65315.0,65314.0,0.095]
[1718858562783,3.94788522,65315.0,65314.0,0.095]
[1718858563860,3.94209787,65315.0,65314.0,0.095]
[1718858564073,3.94788522,65315.0,65314.0,0.095]
[1718858566001,3.94788522,65315.0,65292.0,0.4752]
[1718858566002,0.15889835,65312.0,65311.0,0.09]
[1718858566200,0.97699008,65312.0,65311.0,0.2063]
[1718858566374,0.153134,65302.0,65301.0,0.01342659]
[1718858566598,0.78881973,65302.0,65301.0,0.01342659]
[1718858566826,0.78881973,65302.0,65301.0,0.21972659]
[1718858568256,0.79325973,65302.0,65301.0,0.21972659]
[1718858568456,0.79425973,65302.0,65301.0,0.22472659]
[1718858569260,0.79525973,65302.0,65301.0,0.22872659]
[1718858571230,0.79326227,65302.0,65301.0,0.22872659]
[1718858571671,0.7932309,65302.0,65301.0,0.22872659]
[1718858573095,0.79308738,65302.0,65301.0,0.22872659]
[1718858573238,0.79308738,65302.0,65301.0,0.22372659]
[1718858577286,0.79308738,65302.0,65301.0,0.22467259]
[1718858577689,0.79394738,65302.0,65301.0,0.22467259]
[1718858577823,0.48767838,65302.0,65301.0,0.23467259]
[1718858580919,0.18140938,65302.0,65301.0,0.23467259]
[1718858581712,0.02827538,65302.0,65301.0,0.23467259]
[1718858582328,0.02885171,65302.0,65301.0,0.23467259]
[1718858583403,0.18198571,65302.0,65301.0,0.23467259]
[1718858584007,0.18198571,65302.0,65301.0,0.22467259]
[1718858585165,0.02885171,65302.0,65301.0,0.22467259]
[1718858585932,0.02885171,65302.0,65301.0,0.23467259]
[1718858586367,0.02885171,65302.0,65301.0,0.37780959]
[1718858586515,0.02885171,65302.0,65301.0,0.216246]
[1718858586714,0.02885171,65302.0,65301.0,0.22467259]
[1718858586940,0.02885171,65302.0,65301.0,0.23467259]
[1718858587373,0.02885171,65302.0,65301.0,0.22467259]
[1718858588819,0.02885171,65302.0,65301.0,1.15291871]
[1718858589041,0.02885171,65302.0,65301.0,1.14291871]
[1718858590204,0.02885171,65302.0,65301.0,1.15291871]
[1718858592678,0.02885171,65302.0,65301.0,0.84664471]
[1718858593460,0.0073,65302.0,65301.0,0.84664471]